Cogmind - Beta 14 @@@ ROGUE MODE // 2024.12.29 @ 15:44:34 Player: Fazzonamite Result: Destroyed by S-43 Plague with Heavy Machine Gun Performance ------------- Evolutions (7) 3500 Regions Visited (12) 2400 Robots Destroyed (0) 0 Value Destroyed (10) 10 Prototype IDs (0) 0 Alien Tech Used (0) 0 Bonus (4130) 4130 TOTAL SCORE: 10040 Bonus ------- Pacifist 4085 Follower Combat Kills 45 Cogmind --------- Core Integrity 0/1300 Matter 300/300 Energy 98/100 System Corruption 0% Temperature Cool (0) Movement Core (50) Location -3/Research Parts ------- > --- POWER (2) -------- (None) > --- PROPULSION (6) --- (None) > --- UTILITY (10) ----- (None) > --- WEAPON (3) ------- (None) > --- INVENTORY (5) ---- (None) Peak State ------------ None Favorites ----------- Power None Propulsion None Utility None Weapon None Build | -11 -10 -9 -8 -7 -6 -6 -6 -5 -5 -5 -4 -3 ------- Run | Yrd Mat Mat Mat Fac Fac Low Low Fac Upp Upp Fac Res Slots Evolved 14 | . . 2 2 2 2 . . 2 . . 2 2 Power 1 | . . . . . 1 . . . . . . . Propulsion 4 | . . . 2 . . . . . . . . 2 Utility 8 | . . 2 . 2 . . . 2 . . 2 . Weapon 1 | . . . . . 1 . . . . . . . Parts Attached . | . . . . . . . . . . . . . Power . | . . . . . . . . . . . . . Engine . | . . . . . . . . . . . . . Core . | . . . . . . . . . . . . . Reactor . | . . . . . . . . . . . . . Propulsion . | . . . . . . . . . . . . . Treads . | . . . . . . . . . . . . . Leg . | . . . . . . . . . . . . . Wheel . | . . . . . . . . . . . . . Hover . | . . . . . . . . . . . . . Flight . | . . . . . . . . . . . . . Utility . | . . . . . . . . . . . . . Device . | . . . . . . . . . . . . . Storage . | . . . . . . . . . . . . . Processor . | . . . . . . . . . . . . . Hackware . | . . . . . . . . . . . . . Protection . | . . . . . . . . . . . . . Artifact . | . . . . . . . . . . . . . Weapon . | . . . . . . . . . . . . . Energy Gun . | . . . . . . . . . . . . . Energy Cannon . | . . . . . . . . . . . . . Ballistic Gun . | . . . . . . . . . . . . . Ballistic Cannon . | . . . . . . . . . . . . . Launcher . | . . . . . . . . . . . . . Special Weapon . | . . . . . . . . . . . . . Impact Weapon . | . . . . . . . . . . . . . Slashing Weapon . | . . . . . . . . . . . . . Piercing Weapon . | . . . . . . . . . . . . . Special Melee Weapon . | . . . . . . . . . . . . . Unidentified Prototypes . | . . . . . . . . . . . . . Parts Lost . | . . . . . . . . . . . . . Power . | . . . . . . . . . . . . . Propulsion . | . . . . . . . . . . . . . Utility . | . . . . . . . . . . . . . Weapon . | . . . . . . . . . . . . . Highest Loss Streak . | . . . . . . . . . . . . . To Critical Strikes . | . . . . . . . . . . . . . Average Slot Usage (%) . | . . . . . . . . . . . . . Peak Build Rating . | . . . . . . . . . . . . . Average Rating . | . . . . . . . . . . . . . On Entrance . | . . . . . . . . . . . . . Naked Turns 1383 | . 65 42 54 195 84 420 32 65 135 24 117 150 Heaviest Build . | . . . . . . . . . . . . . Greatest Support 3 | 3 3 3 3 3 3 3 3 3 3 3 3 3 Greatest Overweight (x) . | . . . . . . . . . . . . . Average Overweight (x) . | . . . . . . . . . . . . . Largest Inventory Capacity 5 | 5 5 5 5 5 5 5 5 5 5 5 5 5 Average Capacity 5 | 5 5 5 5 5 5 5 5 5 5 5 5 5 Most Carried . | . . . . . . . . . . . . . Average Carried . | . . . . . . . . . . . . . Final Capacity 5 | 5 5 5 5 5 5 5 5 5 5 5 5 5 Final Carried . | . . . . . . . . . . . . . Class Distribution -------------------- 100% | Mutant Dominant Class ---------------- Mutant | -10/Materials Mutant | -9/Materials Mutant | -8/Materials Mutant | -7/Factory Mutant | -6/Factory Mutant | -6/Lower Caves Mutant | -6/Lower Caves Mutant | -5/Factory Mutant | -5/Upper Caves Mutant | -5/Upper Caves Mutant | -4/Factory Mutant | -3/Research Resources | -11 -10 -9 -8 -7 -6 -6 -6 -5 -5 -5 -4 -3 ----------- Run | Yrd Mat Mat Mat Fac Fac Low Low Fac Upp Upp Fac Res Matter Collected 169 | 36 . . . 121 . 12 . . . . . . Remotely . | . . . . . . . . . . . . . Salvage Created 29 | . . . . . . . . . 29 . . . Parts . | . . . . . . . . . . . . . Haulers Intercepted . | . . . . . . . . . . . . . Recyclers Shooed . | . . . . . . . . . . . . . Parts Field Recycled . | . . . . . . . . . . . . . Retrieved Matter . | . . . . . . . . . . . . . Parts Self-Destructed 4 | . . . . . . 4 . . . . . . Prevented 2 | . . . . . . 2 . . . . . . Kills | -11 -10 -9 -8 -7 -6 -6 -6 -5 -5 -5 -4 -3 ------- Run | Yrd Mat Mat Mat Fac Fac Low Low Fac Upp Upp Fac Res Combat Hostiles Destroyed . | . . . . . . . . . . . . . Classes Destroyed 1 | . . . . . . . . . 1 . . . Decomposer 1 | . . . . . . . . . 1 . . . Best Kill Streak . | . . . . . . . . . . . . . Combat Bots Only . | . . . . . . . . . . . . . Max Kills in Single Turn 1 | . . . . . . . . . 1 . . . Gunslinging . | . . . . . . . . . . . . . Exploded . | . . . . . . . . . . . . . Melee . | . . . . . . . . . . . . . Uniques/NPCs Destroyed . | . . . . . . . . . . . . . Combat | -11 -10 -9 -8 -7 -6 -6 -6 -5 -5 -5 -4 -3 -------- Run | Yrd Mat Mat Mat Fac Fac Low Low Fac Upp Upp Fac Res Hostile Shots Fired 277 | . . 9 30 52 . 18 . 11 67 . 14 76 Missed 128 | . . 2 11 28 . 7 . 5 29 . 10 36 Damage Taken 3345 | . 2 92 191 302 61 224 . 107 623 . 430 1313 Core 3345 | . 2 92 191 302 61 224 . 107 623 . 430 1313 Absorbed by Shields . | . . . . . . . . . . . . . Core Remaining (%) 69 | 100 99 77 65 56 . . 66 . . 27 62 . Volleys Fired . | . . . . . . . . . . . . . Largest . | . . . . . . . . . . . . . Hottest . | . . . . . . . . . . . . . Shots Fired . | . . . . . . . . . . . . . Gun . | . . . . . . . . . . . . . Cannon . | . . . . . . . . . . . . . Launcher . | . . . . . . . . . . . . . Special . | . . . . . . . . . . . . . Kinetic . | . . . . . . . . . . . . . Thermal . | . . . . . . . . . . . . . Explosive . | . . . . . . . . . . . . . Electromagnetic . | . . . . . . . . . . . . . Robot Hit Streak . | . . . . . . . . . . . . . Robot Miss Streak . | . . . . . . . . . . . . . Penetration Max . | . . . . . . . . . . . . . Secondary Targets . | . . . . . . . . . . . . . Shots Hit Robots . | . . . . . . . . . . . . . Core Hits 3 | . . 1 . . . . . . 1 . 1 . Critical Kills . | . . . . . . . . . . . . . Critical Parts Destroyed . | . . . . . . . . . . . . . Critical Strikes . | . . . . . . . . . . . . . Melee Attacks . | . . . . . . . . . . . . . Impact . | . . . . . . . . . . . . . Slashing . | . . . . . . . . . . . . . Piercing . | . . . . . . . . . . . . . Sneak Attacks . | . . . . . . . . . . . . . Combat Hostiles . | . . . . . . . . . . . . . Follow-up Attacks . | . . . . . . . . . . . . . Damage Inflicted 98 | . 4 34 3 24 . . . . 15 . 18 . Guns . | . . . . . . . . . . . . . Cannons . | . . . . . . . . . . . . . Explosions . | . . . . . . . . . . . . . Melee . | . . . . . . . . . . . . . Ramming 98 | . 4 34 3 24 . . . . 15 . 18 . Kinetic . | . . . . . . . . . . . . . Thermal . | . . . . . . . . . . . . . Explosive . | . . . . . . . . . . . . . Electromagnetic . | . . . . . . . . . . . . . Impact . | . . . . . . . . . . . . . Slashing . | . . . . . . . . . . . . . Piercing . | . . . . . . . . . . . . . Highest Corruption 8 | . . 2 2 . 2 2 2 . . . 8 . Average Corruption 2 | . . 2 2 . 2 2 2 . . . 5 . Corruption Purged . | . . . . . . . . . . . . . Corruption Blocked . | . . . . . . . . . . . . . Effects 8 | . . . . . . 7 . . . . 1 . Message Errors 3 | . . . . . . 3 . . . . . . Matter Fused 2 | . . . . . . 2 . . . . . . Heat Flow Errors 1 | . . . . . . 1 . . . . . . Data Loss (minor) 2 | . . . . . . 1 . . . . 1 . Overload Shots . | . . . . . . . . . . . . . Overflow Damage 9 | . . . . . . . . . 9 . . . Projectiles . | . . . . . . . . . . . . . Explosions . | . . . . . . . . . . . . . Melee 9 | . . . . . . . . . 9 . . . Knockbacks . | . . . . . . . . . . . . . Impact . | . . . . . . . . . . . . . Kinetic . | . . . . . . . . . . . . . Secondary . | . . . . . . . . . . . . . Self-Inflicted Damage 43 | . 2 15 1 11 . . . . 7 . 7 . Shots . | . . . . . . . . . . . . . Rammed 21 | . 1 6 1 4 . 1 . . 2 . 6 . Targets Rammed 21 | . 1 6 1 4 . 1 . . 2 . 6 . Kicked . | . . . . . . . . . . . . . Crushed . | . . . . . . . . . . . . . Highest Temperature 194 | . . . . . . 194 . . . . . . Average Temperature 103 | . . . . . . 103 . . . . . . Received Heat Transfer 453 | . . 42 36 123 . 90 . 9 63 . . 90 Siege Activations . | . . . . . . . . . . . . . Robots Corrupted 1 | . . . . . . . . . 1 . . . Combat Hostiles . | . . . . . . . . . . . . . Parts Fried . | . . . . . . . . . . . . . Impact Corruptions 2 | . . . . . . . . . 2 . . . Robots Melted . | . . . . . . . . . . . . . Combat Hostiles . | . . . . . . . . . . . . . Parts Melted . | . . . . . . . . . . . . . Heat Transferred . | . . . . . . . . . . . . . Parts Sabotaged . | . . . . . . . . . . . . . Parts Stolen . | . . . . . . . . . . . . . Parts Stripped . | . . . . . . . . . . . . . Power Chain Reactions . | . . . . . . . . . . . . . Alert | -11 -10 -9 -8 -7 -6 -6 -6 -5 -5 -5 -4 -3 ------- Run | Yrd Mat Mat Mat Fac Fac Low Low Fac Upp Upp Fac Res Peak Influence 327 | . 99 85 20 327 235 . . 32 . . 197 282 Initial 149 | . . 41 5 9 149 . . 2 . . 113 102 Average 131 | . 36 47 5 212 186 . . 3 . . 134 163 Maximum Alert Level 1 | . . . . 1 1 . . . . . . 1 Low Security (%) 75 | 100 100 100 100 33 67 . . 100 . . 100 77 Level 1 24 | . . . . 66 32 . . . . . . 22 Level 2 . | . . . . . . . . . . . . . Level 3 . | . . . . . . . . . . . . . Level 4 . | . . . . . . . . . . . . . Level 5 . | . . . . . . . . . . . . . High Security . | . . . . . . . . . . . . . Max Security . | . . . . . . . . . . . . . Squads Dispatched 10 | . . 1 1 1 1 . . . . . 4 2 Investigation 1 | . . . . 1 . . . . . . . . Extermination . | . . . . . . . . . . . . . Reinforcement 8 | . . 1 1 . 1 . . . . . 3 2 Assault . | . . . . . . . . . . . . . Garrison 1 | . . . . . . . . . . . 1 . Intercept . | . . . . . . . . . . . . . Searches Triggered . | . . . . . . . . . . . . . Construction Impeded 1 | . . . . . . . . . . . 1 . Haulers Reinforced . | . . . . . . . . . . . . . Active Scanning Responses . | . . . . . . . . . . . . . Cargo Convoy Interrupts . | . . . . . . . . . . . . . Stealth | -11 -10 -9 -8 -7 -6 -6 -6 -5 -5 -5 -4 -3 --------- Run | Yrd Mat Mat Mat Fac Fac Low Low Fac Upp Upp Fac Res Distress Signals 6 | . . 1 1 . 1 . . . . . 2 1 Communications Jammed . | . . . . . . . . . . . . . Distress Signals . | . . . . . . . . . . . . . Times Spotted 113 | . 4 11 13 9 3 11 . 8 16 . 10 28 Peak Tracking Total 18 | . 5 9 12 5 4 6 . 8 12 . 8 18 Tactical Retreats 13 | . 1 . . 1 1 2 . . 5 . . 3 Traps | -11 -10 -9 -8 -7 -6 -6 -6 -5 -5 -5 -4 -3 ------- Run | Yrd Mat Mat Mat Fac Fac Low Low Fac Upp Upp Fac Res Traps Triggered 9 | . 2 . . 1 1 . . . . . 1 4 Indirectly . | . . . . . . . . . . . . . Trap Hack Attempts . | . . . . . . . . . . . . . Triggered . | . . . . . . . . . . . . . Disarmed . | . . . . . . . . . . . . . Reprogrammed . | . . . . . . . . . . . . . Reused . | . . . . . . . . . . . . . Traps Extracted . | . . . . . . . . . . . . . Installed . | . . . . . . . . . . . . . Triggered . | . . . . . . . . . . . . . Machines | -11 -10 -9 -8 -7 -6 -6 -6 -5 -5 -5 -4 -3 ---------- Run | Yrd Mat Mat Mat Fac Fac Low Low Fac Upp Upp Fac Res Machines Disabled 1 | . . . . . . . . . . . 1 . Max in Single Turn . | . . . . . . . . . . . . . Machines Repaired . | . . . . . . . . . . . . . Machines Dismantled . | . . . . . . . . . . . . . Machines Sabotaged . | . . . . . . . . . . . . . Overloaded Fab Kills . | . . . . . . . . . . . . . Hacking | -11 -10 -9 -8 -7 -6 -6 -6 -5 -5 -5 -4 -3 --------- Run | Yrd Mat Mat Mat Fac Fac Low Low Fac Upp Upp Fac Res Machines Accessed 12 | . 4 2 1 1 2 1 . . 1 . . . Terminals 10 | . 4 2 1 1 2 . . . . . . . Fabricators . | . . . . . . . . . . . . . Repair Stations . | . . . . . . . . . . . . . Recycling Units . | . . . . . . . . . . . . . Scanalyzers . | . . . . . . . . . . . . . Garrison Access . | . . . . . . . . . . . . . Total Hacks 22 | . 7 5 2 2 4 1 . . 1 . . . Successful 12 | . 2 4 1 1 2 1 . . 1 . . . Failed 10 | . 5 1 1 1 2 . . . . . . . Catastrophic 4 | . 3 . 1 . . . . . . . . . Database Lockouts . | . . . . . . . . . . . . . Manual 17 | . 6 3 2 2 4 . . . . . . . Terminals 20 | . 7 5 2 2 4 . . . . . . . Fabricators . | . . . . . . . . . . . . . Repair Stations . | . . . . . . . . . . . . . Recycling Units . | . . . . . . . . . . . . . Scanalyzers . | . . . . . . . . . . . . . Garrison Access . | . . . . . . . . . . . . . Terminal Hacks 7 | . 2 3 . . . 1 . . 1 . . . Robot Analysis 1 | . 1 . . . . . . . . . . . Open Door 2 | . . . . . . 1 . . 1 . . . Level Access Points 2 | . 1 1 . . . . . . . . . . Unreport Threat 1 | . . 1 . . . . . . . . . . Zone Layout 1 | . . 1 . . . . . . . . . . Fabricator Hacks . | . . . . . . . . . . . . . Repair Station Hacks . | . . . . . . . . . . . . . Recycling Unit Hacks . | . . . . . . . . . . . . . Scanalyzer . | . . . . . . . . . . . . . Garrison Access Hacks . | . . . . . . . . . . . . . Unauthorized Hacks 5 | . . 1 1 1 2 . . . . . . . Terminals 5 | . . 1 1 1 2 . . . . . . . Botnet 5 | . . 1 1 1 2 . . . . . . . Fabricators . | . . . . . . . . . . . . . Repair Stations . | . . . . . . . . . . . . . Recycling Units . | . . . . . . . . . . . . . Scanalyzers . | . . . . . . . . . . . . . Garrison Access . | . . . . . . . . . . . . . Data Cores Recovered . | . . . . . . . . . . . . . Used . | . . . . . . . . . . . . . Hacking Detections 8 | . 4 1 1 1 1 . . . . . . . Full Trace Events . | . . . . . . . . . . . . . Feedback Events . | . . . . . . . . . . . . . Feedback Blocked . | . . . . . . . . . . . . . Robot Schematics Acquired . | . . . . . . . . . . . . . Robots Built . | . . . . . . . . . . . . . Authchips . | . . . . . . . . . . . . . Time . | . . . . . . . . . . . . . Total Robot Build Rating . | . . . . . . . . . . . . . Part Schematics Acquired . | . . . . . . . . . . . . . Parts Built . | . . . . . . . . . . . . . Authchips . | . . . . . . . . . . . . . Time . | . . . . . . . . . . . . . Total Part Build Rating . | . . . . . . . . . . . . . Parts Repaired . | . . . . . . . . . . . . . Time . | . . . . . . . . . . . . . Parts Recycled . | . . . . . . . . . . . . . Recycled Matter . | . . . . . . . . . . . . . Retrieved Matter . | . . . . . . . . . . . . . Retrieved Components . | . . . . . . . . . . . . . Parts Scanalyzed . | . . . . . . . . . . . . . Part Schematics Acquired . | . . . . . . . . . . . . . Parts Damaged . | . . . . . . . . . . . . . Bothacking | -11 -10 -9 -8 -7 -6 -6 -6 -5 -5 -5 -4 -3 ------------ Run | Yrd Mat Mat Mat Fac Fac Low Low Fac Upp Upp Fac Res Used RIF Installer . | . . . . . . . . . . . . . Robots Hacked . | . . . . . . . . . . . . . Non-combat . | . . . . . . . . . . . . . Combat . | . . . . . . . . . . . . . Robot Hacks Applied . | . . . . . . . . . . . . . Relay Couplers Released . | . . . . . . . . . . . . . Fabnet Peak Effective % . | . . . . . . . . . . . . . Robots Rewired 3 | . . . . 2 . . . . . . 1 . Allies Hacked . | . . . . . . . . . . . . . Hacks Repelled . | . . . . . . . . . . . . . Allies | -11 -10 -9 -8 -7 -6 -6 -6 -5 -5 -5 -4 -3 -------- Run | Yrd Mat Mat Mat Fac Fac Low Low Fac Upp Upp Fac Res Total Allies 3 | . . . . 2 . . . . . . 1 . Largest Group 2 | . . . . 2 . . . . . . 1 . Highest-Rated Group 49 | . . . . 46 . . . . . . 49 . Highest-Rated Ally 49 | . . . . 25 . . . . . . 49 . Total Orders . | . . . . . . . . . . . . . Ally Attacks 21 | . . . . 11 . . . . . . 10 . Total Damage 859 | . . . . 427 . . . . . . 432 . Kills 4 | . . . . 1 . . . . . . 3 . Allies Corrupted . | . . . . . . . . . . . . . Allies Melted . | . . . . . . . . . . . . . Intel | -11 -10 -9 -8 -7 -6 -6 -6 -5 -5 -5 -4 -3 ------- Run | Yrd Mat Mat Mat Fac Fac Low Low Fac Upp Upp Fac Res Robot Analysis Total 1 | . 1 . . . . . . . . . . . Derelict Logs Recovered 5 | . . . . . . 2 . . 2 1 . . Drone Launches . | . . . . . . . . . . . . . Drone Recoveries . | . . . . . . . . . . . . . Exploration | -11 -10 -9 -8 -7 -6 -6 -6 -5 -5 -5 -4 -3 ------------- Run | Yrd Mat Mat Mat Fac Fac Low Low Fac Upp Upp Fac Res Turns Passed 1392 | 9 65 42 54 195 84 420 32 65 135 24 117 150 Spaces Moved 2537 | 19 127 72 93 367 160 724 60 130 260 48 211 266 Core 2537 | 19 127 72 93 367 160 724 60 130 260 48 211 266 Treads . | . . . . . . . . . . . . . Legs . | . . . . . . . . . . . . . Wheels . | . . . . . . . . . . . . . Hover . | . . . . . . . . . . . . . Flight . | . . . . . . . . . . . . . Fastest Speed 50 | 50 50 50 50 50 50 50 50 50 50 50 50 50 Average Speed 50 | 50 50 50 50 50 50 50 50 50 50 50 50 50 Slowest Speed 50 | 50 50 50 50 50 50 50 50 50 50 50 50 50 Overloaded Moves . | . . . . . . . . . . . . . Propulsion Burnouts . | . . . . . . . . . . . . . Robots Hopped . | . . . . . . . . . . . . . Cave-ins Triggered . | . . . . . . . . . . . . . Exploration Rate (%) 21 | 3 39 12 22 14 8 83 15 5 46 10 10 14 Regions Visited 12 Branch Regions 4 Pre-discovered Areas 1 | . . . . . . . . . 1 . . . Known Exits Taken 4 | . 1 1 . . . 1 . . 1 . . . Unknown Exits Taken 8 | 1 . . 1 1 1 . 1 1 . 1 1 . Scrap Searched 2 | . . . . . . 1 . . . 1 . . Spaces Dug . | . . . . . . . . . . . . . Terrain Destroyed . | . . . . . . . . . . . . . Melee . | . . . . . . . . . . . . . Projectile . | . . . . . . . . . . . . . AOE . | . . . . . . . . . . . . . Terrain Rammed . | . . . . . . . . . . . . . Walls Destroyed . | . . . . . . . . . . . . . Machines Disabled . | . . . . . . . . . . . . . Actions | -11 -10 -9 -8 -7 -6 -6 -6 -5 -5 -5 -4 -3 --------- Run | Yrd Mat Mat Mat Fac Fac Low Low Fac Upp Upp Fac Res Total 2647 | 18 127 77 99 377 163 781 61 129 264 47 221 283 Wait 74 | . . . 6 . 4 57 2 . 3 . . 2 Move 2525 | 18 126 71 92 366 159 723 59 129 259 47 210 266 Hop . | . . . . . . . . . . . . . Pick Up . | . . . . . . . . . . . . . Fast Attach . | . . . . . . . . . . . . . Attach . | . . . . . . . . . . . . . Detach . | . . . . . . . . . . . . . Swap . | . . . . . . . . . . . . . Drop . | . . . . . . . . . . . . . Fire . | . . . . . . . . . . . . . Melee . | . . . . . . . . . . . . . Ram 21 | . 1 6 1 4 . 1 . . 2 . 6 . Kick . | . . . . . . . . . . . . . Crush . | . . . . . . . . . . . . . Escape Stasis 15 | . . . . . . . . . . . . 15 Rewire 12 | . . . . 7 . . . . . . 5 . Trap . | . . . . . . . . . . . . . Miscellaneous . | . . . . . . . . . . . . . Route ------- -11/Scrapyard -10/Materials (discovered 3 exits: *Mat x3) -9/Materials (discovered 3 exits: *Mat x3) -8/Materials -7/Factory -6/Factory -6/Lower Caves -6/Lower Caves -5/Factory -5/Upper Caves -5/Upper Caves -4/Factory -3/Research History --------- Turn | Location | Event 3 | -11/Scrapyard | Discovered new exit (range 15) 10 | -11/Scrapyard | Entered Materials 60 | -10/Materials | Identified exit to Materials 75 | -10/Materials | Entered another Materials area 75 | -9/Materials | Evolved 2 slots: Utility x2 82 | -9/Materials | Identified exit to Materials 117 | -9/Materials | Entered another Materials area 117 | -8/Materials | Evolved 2 slots: Propulsion x2 168 | -8/Materials | Discovered new exit (range 5) 171 | -8/Materials | Entered Factory 171 | -7/Factory | Evolved 2 slots: Utility x2 305 | -7/Factory | Build established: Mutant 358 | -7/Factory | Discovered new exit (range 13) 366 | -7/Factory | Entered another Factory area 366 | -6/Factory | Evolved 2 slots: Power x1, Weapon x1 445 | -6/Factory | Discovered new exit (range 12) 450 | -6/Factory | Entered Lower Caves 464 | -6/Lower Caves | Encountered a Warlord checkpoint 482 | -6/Lower Caves | Learned Factory security intel 745 | -6/Lower Caves | Identified exit to Lower Caves 837 | -6/Lower Caves | P-60 Hacker assimilated allied 75-687(b) 841 | -6/Lower Caves | P-60 Hacker assimilated allied SJ-PA3(b) 870 | -6/Lower Caves | Entered another Lower Caves area 881 | -6/Lower Caves | Lost 4 allies 899 | -6/Lower Caves | Discovered new exit (range 8) 902 | -6/Lower Caves | Entered Factory 902 | -5/Factory | Evolved 2 slots: Utility x2 960 | -5/Factory | Discovered new exit (range 16) 967 | -5/Factory | Entered Upper Caves 989 | -5/Upper Caves | Attracted the attention of an 0b10 outpost 991 | -5/Upper Caves | Attracted the attention of an 0b10 checkpoint 1032 | -5/Upper Caves | Learned location of Armory (-4) 1034 | -5/Upper Caves | Identified exit to Upper Caves 1040 | -5/Upper Caves | Core integrity fell below 50% 1102 | -5/Upper Caves | Entered another Upper Caves area 1106 | -5/Upper Caves | Learned Factory security intel 1121 | -5/Upper Caves | Discovered new exit (range 11) 1126 | -5/Upper Caves | Entered Factory 1126 | -4/Factory | Evolved 2 slots: Utility x2 1226 | -4/Factory | Discovered new exit (range 14) 1240 | -4/Factory | Garrison activated, responded to threat 1243 | -4/Factory | Entered Research 1243 | -3/Research | Evolved 2 slots: Propulsion x2 1339 | -3/Research | Core integrity fell below 50% 1365 | -3/Research | Core integrity fell below 20% 1393 | -3/Research | Destroyed by S-43 Plague with Heavy Machine Gun Last Messages --------------- 01351_ Triggered Gamma Bomb Trap. 01351_ A bubble of electromagnetic force engulfs the area. 01351_ Gamma Bomb Trap short circuited. 01351_ A bubble of electromagnetic force engulfs the area. 01353_ U-05 Engineer lays Concrete. 01355_ K-01 Serf cleans the Antiparticle Reservoir. 01377_ K-01 Serf cleans the Scanalyzer. 01378_ K-01 Serf cleans the Meson Extractor. 01379_ K-01 Serf cleans the Scanalyzer. 01384_ K-01 Serf cleans the Meson Extractor. 01388_ O-24 Administrator sends out distress signal. 01388_ O-24 Administrator uses terminal to summon reinforcements. 01388_ ALERT: Hostiles spotted, dispatching reinforcements to Terminal R010. 01388_ O-24 Administrator locks terminal. Map ----- +----------------------------------------------------+ | ????????????????????????????????????????? | | ????????????????????????????????????????? | | ????????????????????????????????????????? | | ????????????????????????????????????????? | | ????????????????????????????????????????? | | ????????????????????????????????????????? | | ????????????????????????????????????????? | | ????????????????????????????????????????? | | ????????????????????????????????????????? | | ????????????????????????????????????????? | | ????????????????????????????????????????? | | ????????????????????????????????????????? | | ????????????????????????????????????????? | | ????????????????????????????????????????? | | ????????????????????????????????????????? | | ????????????????????????????????????????? | | ?????????????????###+##?????????????????? | | ?????????????????# ?????????????????? | | ?????????????????+ ?????????????????? | | ?????????????????# ?????????????????? | | ?????????????????# ?????????????????? | | ?????????????????# ########??????????? | | ?????????????????# # #??????????? | | ??????? ########## # #??????????? | | ??????? # #??????????? | | ?????? # @ #??????????? | | ?????? g g s #??????????? | | ?????? g # "" #??????????? | | ??????????####+### # "" #??????????? | | ?????????????????# # "" #??????????? | | ?????????# ??????# # S #??????????? | | ?????????# ????# # "" #??????????? | | ?????????# ??# # "" #??????????? | | ?????????# """# # "" #??????????? | | ?????????# / # #??????????? | | ?????????# / ## ### ???#??????????? | | #######??##########+######??????????????? | | ??# #?????????????????? | | ?# #?????????????????? | | ?# """ "" #?????????????????? | | ? # """ """ #?????????????????? | | """ # """ S" #?????????????????? | | """ + """ #?????????????????? | | " """ # """ #?????????????????? | | ? """ # """ #?????????????????? | | ? """ ?# """ #?????????????????? | | ?? ?# """ #?????????????????? | | ?? ??# #?????????????????? | | ? ??# #?????????????????? | | ?##############/#########???????????????? | +----------------------------------------------------+ Best States ------------- Heat Dissipation 46 Energy Generation 5 Energy Capacity 100 Matter Stores 300 Matter Capacity 300 Sight Range 16 Terrain Scan Density 10 Evasion (%) 50 Item Schematics ----------------- None Robot Schematics ------------------ None Fabricated ------------ Nothing Alien Tech Used ----------------- None Achievements -------------- Streaker Challenges ------------ None Game ------ Seed OvertunedExoskeletonShifter Manual? 0 Play Time 00:48:38 Cumulative 117.0 hours Start 2024.12.29 @ 14:54:36 End 2024.12.29 @ 15:44:34 Sessions 1 Manual Loads 0 Difficulty Rogue Special Mode None Game No. 88 Rogue 88 Adventurer 0 Explorer 0 Win Type - Total 1 Types 1/0/0/0/0/0/0/0/0 Lore% 42 Gallery% 47 Achievement% 41 Wizard Run 0 Options --------- Layout 2 ASCII 0 Keyboard 0 Movement Mouse Keybinds 0 Fullscreen 1 Font 48/Smallcaps Map View 50x44 Zoom Use 0% Tactical HUD 1 Map Filters NONE Filters NONE Steam 1 RUN: b8e2b4a4-548e-48f0-9ded-057672a462c6